fUST/lending_fUST_20260419
["ID","MTS","AMOUNT","RATE_DAILY","PERIOD"]
[420825719,1776593439296,-500.0,0.00012014,2]
[420825720,1776593439306,-500.0,0.00012014,2]
[420825722,1776593439316,-500.0,0.00012014,2]
[420825724,1776593439325,-500.0,0.00012014,2]
[420825725,1776593439334,-500.0,0.00012014,2]
[420825726,1776593439344,-500.0,0.00012014,2]
[420825727,1776593439353,-500.0,0.00012014,2]
[420825728,1776593439362,-500.0,0.00012014,2]
[420825729,1776593439371,-500.0,0.00012014,2]
[420825730,1776593439381,-500.0,0.00012014,2]
[420825731,1776593439390,-500.0,0.00012014,2]
[420825732,1776593439400,-500.0,0.00012014,2]
[420825733,1776593439409,-500.0,0.00012014,2]
[420825734,1776593439418,-500.0,0.00015999,2]
[420825735,1776593439427,-29247.81002694,0.00016898,2]
[420825744,1776593441337,-459.34763194,0.00016898,2]
[420825752,1776593443935,-388.62447321,0.00016898,2]
[420825756,1776593447225,-14301.95059916,0.00016898,2]
[420825878,1776594629462,200.49627,4.006e-05,2]
[420826025,1776594638458,-327.09795709,0.00010229,2]
[420826026,1776594638467,-5000.0,0.00010332,2]
[420826027,1776594638476,-1011.60385938,0.00010415,2]
[420826028,1776594638486,-1138.10184387,0.00010436,2]
[420826029,1776594638495,-1991.38693509,0.00010515,2]
[420826030,1776594638505,-150.0,0.00010594,2]
[420826031,1776594638515,-1302.38389184,0.00010615,2]
[420826049,1776594643220,-1696.0309117,0.00010509,2]
[420826050,1776594643232,-1470.44554116,0.00010615,2]
[420826051,1776594643243,-198.3405778,0.00010615,2]
[420826052,1776594643252,-1077.04132365,0.00010715,2]
[420826053,1776594643264,-1888.90328211,0.00010715,2]
[420826054,1776594643281,-411.28694888,0.00010715,2]
[420826055,1776594643291,-379.71778088,0.00010815,2]
[420826062,1776594646355,-3571.23530563,0.00010815,2]
[420826063,1776594646365,-300.0,0.00010826,2]
[420826064,1776594646375,-300.0,0.00010826,2]
[420826065,1776594646384,-300.0,0.00010826,2]
[420826066,1776594646393,-300.0,0.00010826,2]
[420826067,1776594646403,-300.0,0.00010826,2]
[420826068,1776594646413,-300.0,0.00010826,2]
[420826069,1776594646422,-300.0,0.00010826,2]
[420826070,1776594646431,-300.0,0.00010826,2]
[420826071,1776594646441,-300.0,0.00010826,2]
[420826072,1776594646452,-300.0,0.00010826,2]
[420826073,1776594646462,-300.0,0.00010826,2]
[420826074,1776594646471,-300.0,0.00010826,2]
[420826075,1776594646481,-300.0,0.00010826,2]
[420826076,1776594646490,-300.0,0.00010826,2]
[420826077,1776594646501,-300.0,0.00010826,2]
[420826078,1776594646510,-4006.08025513,0.00010915,2]
[420826079,1776594646520,-4634.92895571,0.00011015,2]
[420826080,1776594646529,-600.0,0.00011042,2]
[420826081,1776594646539,-1059.79332758,0.00011115,2]
[420826082,1776594646575,-3870.94283465,0.00011115,2]
[420826083,1776594646586,-720.0,0.00012146,2]
[420826084,1776594646595,-1200.0,0.00012249,2]
[420826085,1776594646604,-300.0,0.0001225,2]
[420826086,1776594646614,-300.0,0.0001225,2]
[420826087,1776594646624,-300.0,0.0001225,2]
[420826088,1776594646634,-54.05202287,0.00012251,2]
[420826102,1776594817598,200.0,2e-05,10]
[420826274,1776595838452,-2174.17505419,6.58e-05,2]
[420826275,1776595838464,-2825.82494581,6.58e-05,2]
[420826276,1776595838474,-163.414563,6.647e-05,2]
[420826277,1776595838483,-514.0,6.647e-05,2]
[420826278,1776595838493,-163.414563,8.308e-05,2]
[420826279,1776595838502,-177.0,8.647e-05,2]
[420826280,1776595838511,-163.414563,9.97e-05,2]
[420826281,1776595838521,-204.0,0.00010647,2]
[420826282,1776595838530,-163.414563,0.00011632,2]
[420826283,1776595838539,-152.0,0.00011826,7]
[420826284,1776595838549,-152.0,0.0001183,30]
[420826285,1776595838558,-231.0,0.00012647,2]
[420826286,1776595838567,-246.0,0.00012656,2]
[420826287,1776595838577,-5910.51923794,0.00012657,2]
[420826288,1776595838587,-163.414563,0.00013294,2]
[420826289,1776595838596,-1000.0,0.00013699,2]
[420826290,1776595838606,-1000.0,0.00013699,2]
[420826291,1776595838615,-152.0,0.00013702,7]
[420826292,1776595838625,-152.0,0.00013706,30]
[420826293,1776595838635,-369.4593846,0.00013886,2]
[420826294,1776595838644,-668.68671292,0.00013886,2]
[420826295,1776595838664,-966.96434358,0.00013886,2]
[420826296,1776595838674,-3357.35595534,0.00013886,2]
[420826297,1776595838683,-160.0,0.00013924,2]
[420826298,1776595838693,-158.0,0.00014356,3]
[420826299,1776595838702,-258.0,0.00014647,2]
[420826300,1776595838712,-7150.87498981,0.00014954,2]
[420826301,1776595838721,-152.0,0.00014957,7]
[420826302,1776595838734,-152.0,0.00014961,30]
[420826303,1776595838743,-325.2970195,0.00015286,2]
[420826304,1776595838753,-455.6611417,0.00015308,2]
[420826305,1776595838762,-437.03662378,0.0001541,2]
[420826306,1776595838772,-1635.6510565,0.00015622,2]
[420826307,1776595838781,-7526.93062276,0.00015719,2]
[420826308,1776595838791,-369.4593846,0.00015827,2]
[420826309,1776595838801,-300.0,0.00016,2]
[420826310,1776595838811,-600.0,0.00016031,2]
[420826311,1776595838821,-3448.7094703,0.00016067,2]
[420826312,1776595838830,-325.2772124,0.0001613,2]
[420826313,1776595838840,-500.0,0.00016142,2]
[420826314,1776595838849,-187.63007915,0.00016142,2]
[420826315,1776595838859,-500.0,0.00016142,2]
[420826316,1776595838869,-500.0,0.00016142,2]
[420826317,1776595838878,-500.0,0.00016142,2]
[420826318,1776595838887,-500.0,0.00016142,2]
[420826319,1776595838897,-500.0,0.00016142,2]
[420826320,1776595838907,-500.0,0.00016142,2]
[420826321,1776595838917,-650.07333505,0.00016142,2]
[420826322,1776595838927,-500.0,0.00016142,2]
[420826324,1776595838936,-500.0,0.00016142,2]
[420826325,1776595838945,-500.0,0.00016142,2]
[420826326,1776595838954,-500.0,0.00016142,2]
[420826327,1776595838964,-321.7930281,0.00016142,2]
[420826328,1776595838973,-500.0,0.00016142,2]
[420826329,1776595838983,-623.71638537,0.00016142,2]
[420826330,1776595838992,-500.0,0.00016142,2]
[420826331,1776595839001,-500.0,0.00016142,2]
[420826332,1776595839011,-500.0,0.00016142,2]
[420826333,1776595839020,-500.0,0.00016142,2]
[420826334,1776595839030,-500.0,0.00016142,2]
[420826335,1776595839039,-228.75821332,0.00016142,2]
[420826336,1776595839048,-500.0,0.00016142,2]
[420826337,1776595839057,-500.0,0.00016142,2]
[420826339,1776595839066,-500.0,0.00016142,2]
[420826340,1776595839075,-500.0,0.00016142,2]
[420826341,1776595839084,-532.51063319,0.00016142,2]
[420826342,1776595839094,-127013.2388558,0.00016143,2]
[420826343,1776595839107,-29118.36803948,0.00016143,2]
[420826380,1776595840906,-1014.60595724,0.00016143,2]
[420826414,1776595846539,-7656.864661,0.00016143,2]
[420826415,1776595846594,-11862.69992182,0.00016143,2]
[420826427,1776596212848,7000.0,9e-05,30]
[420826457,1776596430085,234.26089,4.006e-05,2]
[420826459,1776596519170,-284.40732825,0.0001274,2]
[420826460,1776596519203,-4513.7333641,0.0001274,2]
[420826461,1776596548431,-82.5480206,0.0001274,2]
[420826462,1776596548455,-119.31128705,0.0001274,2]
[420826517,1776597032542,-1200.0,0.0001236,2]
[420826519,1776597032551,-3970.32797006,0.00012361,2]
[420826521,1776597032560,-406.18165055,0.00012361,2]
[420826523,1776597032571,-188.81834945,0.00012361,2]
[420826525,1776597032581,-300.0,0.00012611,2]
[420826527,1776597032590,-300.0,0.00012611,2]
[420826529,1776597032598,-300.0,0.00012611,2]
[420826530,1776597032607,-31.96182538,0.00012613,2]
[420826531,1776597032618,-118.03817462,0.00012613,2]
[420826534,1776597032627,-500.0,0.0001287,2]
[420826536,1776597032636,-500.0,0.0001287,2]
[420826538,1776597032645,-500.0,0.0001287,2]
[420826540,1776597032655,-347.07959837,0.00012999,2]
[420826542,1776597032664,-247.63980148,0.00012999,2]
[420826544,1776597032673,-1666.4622507,0.00013,2]
[420826564,1776597039456,-1045.6639,0.0001287,2]
[420826565,1776597039466,-55027.8377493,0.00013,2]
[420826566,1776597039476,-300.0,0.00013259,2]
[420826567,1776597039485,-300.0,0.00013259,2]
[420826568,1776597039495,-300.0,0.00013259,2]
[420826569,1776597039504,-300.0,0.00013259,2]
[420826570,1776597039513,-300.0,0.00013259,2]
[420826571,1776597039523,-300.0,0.00013259,2]
[420826572,1776597039532,-300.0,0.00013259,2]
[420826573,1776597039541,-300.0,0.00013259,2]
[420826574,1776597039551,-300.0,0.00013259,2]
[420826575,1776597039560,-300.0,0.00013259,2]
[420826576,1776597039570,-300.0,0.00013259,2]
[420826577,1776597039580,-300.0,0.00013259,2]
[420826578,1776597039589,-300.0,0.00013259,2]
[420826579,1776597039598,-300.0,0.00013259,2]
[420826580,1776597039607,-300.0,0.00013259,2]
[420826581,1776597039617,-600.0,0.00013259,2]
[420826582,1776597039626,-362.02851164,0.00013365,14]
[420826583,1776597039635,-1000.0,0.00013699,2]
[420826584,1776597039645,-720.0,0.00014585,2]
[420826585,1776597039654,-177.0,0.00014613,2]
[420826586,1776597039663,-209.75980676,0.0001552,2]
[420826587,1776597039672,-156.0,0.0001562,2]
[420826588,1776597039683,-152.0,0.00015647,7]
[420826589,1776597039691,-152.0,0.00015652,30]
[420826590,1776597039700,-1408.0,0.00015677,2]
[420826591,1776597039710,-645.0,0.00015677,2]
[420826592,1776597039720,-160.0,0.00015735,2]
[420826593,1776597039729,-500.0,0.00015973,2]
[420826594,1776597039738,-184.7296923,0.00015997,2]
[420826595,1776597039747,-3116.1577539,0.00015997,2]
[420826596,1776597039757,-50285.0,0.00016,2]
[420826597,1776597039767,-500.078316,0.00016,2]
[420826598,1776597039776,-500.078316,0.00016,2]
[420826599,1776597039786,-500.078316,0.00016,2]
[420826600,1776597039795,-500.078316,0.00016,2]
[420826601,1776597039804,-171.7011344,0.00016027,2]
[420826602,1776597039814,-864.0,0.00016043,2]
[420826603,1776597039822,-445.202766,0.000161,2]
[420826604,1776597039837,-2150.738,0.000161,2]
[420826605,1776597039846,-500.0,0.00016169,2]
[420826606,1776597039855,-500.0,0.00016169,2]
[420826607,1776597039864,-500.0,0.00016169,2]
[420826608,1776597039874,-500.0,0.00016169,2]
[420826609,1776597039884,-500.0,0.00016169,2]
[420826610,1776597039893,-500.0,0.00016169,2]
[420826611,1776597039902,-500.0,0.00016169,2]
[420826612,1776597039912,-500.0,0.00016169,2]
[420826613,1776597039922,-500.0,0.00016169,2]
[420826614,1776597039931,-500.0,0.00016169,2]
[420826615,1776597039940,-500.0,0.00016169,2]
[420826616,1776597039950,-455.05133454,0.00016169,2]
[420826617,1776597039958,-456.5744109,0.00016264,2]
[420826618,1776597039968,-222.958,0.00016284,2]
[420826619,1776597039977,-433.64,0.00016402,2]
[420826620,1776597039986,-207.63,0.00016438,2]
[420826621,1776597039995,-7767.95889454,0.00016485,2]
[420826622,1776597040004,-500.078316,0.00016485,2]
[420826623,1776597040014,-500.078316,0.00016485,2]
[420826624,1776597040023,-500.078316,0.00016485,2]
[420826625,1776597040033,-500.078316,0.00016485,2]
[420826626,1776597040042,-443.587,0.0001655,2]
[420826627,1776597040051,-221.179,0.0001655,2]
[420826628,1776597040061,-204.0,0.00016612,2]
[420826629,1776597040070,-461.67526834,0.00016648,2]
[420826630,1776597040079,-2230.315306,0.00016648,2]
[420826631,1776597040088,-155.0,0.00016827,2]
[420826632,1776597040097,-1393.62786179,0.00016856,2]
[420826633,1776597040107,-200.0,0.0001689,7]
[420826634,1776597040116,-455.5310146,0.00017077,2]
[420826635,1776597040125,-216.192,0.00017086,2]
[420826636,1776597040135,-153.586,0.00017086,2]
[420826637,1776597040144,-166.049,0.00017086,2]
[420826638,1776597040154,-451.09,0.000171,2]
[420826639,1776597040163,-200.0,0.000171,2]
[420826640,1776597040172,-200.0,0.000171,2]
[420826641,1776597040181,-151.0776217,0.00017143,2]
[420826642,1776597040190,-515.64,0.00017177,2]
[420826644,1776597040200,-21535.77598841,0.000172,2]
[420826646,1776597040209,-500.078316,0.000172,2]
[420826648,1776597040219,-500.078316,0.000172,2]
[420826649,1776597040228,-500.078316,0.000172,2]
[420826650,1776597040237,-500.078316,0.000172,2]
[420826651,1776597040247,-250.0,0.00017205,4]
[420826652,1776597040255,-155.0,0.0001737,2]
[420826653,1776597040265,-50000.0,0.000174,2]
[420826654,1776597040274,-500.078316,0.000174,2]
[420826656,1776597040283,-353.02387687,0.000174,2]
[420826662,1776597040527,-147.05443913,0.000174,2]
[420826663,1776597040535,-500.078316,0.000174,2]
[420826664,1776597040544,-500.078316,0.000174,2]
[420826665,1776597040553,-500.0,0.00017498,2]
[420826666,1776597040562,-1000.0,0.00017648,2]
[420826667,1776597040571,-500.17,0.00017692,2]
[420826668,1776597040580,-184.7296923,0.00017781,2]
[420826669,1776597040589,-1503.4,0.000179,2]
[420826670,1776597040598,-155.0,0.00017912,2]
[420826671,1776597040607,-277.81621544,0.0001799,60]
[420826672,1776597040616,-700.0,0.00018,5]
[420826674,1776597040627,-200.0,0.00018,7]
[420826676,1776597040636,-300.0,0.00018,2]
[420826678,1776597040646,-500.0,0.00018,2]
[420826680,1776597040655,-8349.59985799,0.00018016,2]
[420826681,1776597040664,-500.078316,0.00018016,2]
[420826682,1776597040673,-500.078316,0.00018016,2]
[420826683,1776597040683,-500.078316,0.00018016,2]
[420826684,1776597040692,-500.078316,0.00018016,2]
[420826685,1776597040701,-151.0,0.00018102,2]
[420826686,1776597040711,-484.69,0.00018207,2]
[420826687,1776597040720,-600.187,0.00018377,2]
[420826688,1776597040730,-231.0,0.00018612,2]
[420826689,1776597040739,-187.856801,0.0001862,7]
[420826690,1776597040748,-1408.0,0.00018677,2]
[420826691,1776597040757,-645.0,0.00018677,2]
[420826692,1776597040767,-172.92572073,0.00018696,2]
[420826693,1776597040776,-8768.02499806,0.00018782,2]
[420826694,1776597040785,-1503.4,0.000189,2]
[420826695,1776597040794,-151.5,0.00018904,2]
[420826696,1776597040803,-9788.1044704,0.00019,2]
[420826697,1776597040813,-5000.0,0.00019,2]
[420826698,1776597040822,-5000.0,0.00019,2]
[420826699,1776597040831,-5000.0,0.00019,2]
[420826700,1776597040841,-5000.0,0.00019,2]
[420826701,1776597040850,-451.09,0.000191,2]
[420826702,1776597040860,-200.0,0.00019178,2]
[420826703,1776597040869,-1000.0,0.00019412,2]
[420826704,1776597040878,-244.0,0.00019412,2]
[420826705,1776597040887,-155.0,0.00019541,2]
[420826706,1776597040897,-441.0,0.0001955,2]
[420826707,1776597040906,-184.0,0.0001955,2]
[420826708,1776597040915,-184.7296923,0.00019566,2]
[420826709,1776597040925,-200.0,0.00019589,3]
[420826710,1776597040935,-71142.40888609,0.000196,4]
[420826711,1776597040947,-435.0,0.000196,4]
[420826712,1776597040965,-998.5915468,0.000196,4]
[420826734,1776597041254,-30090.91369566,0.000196,4]
[420826835,1776597047117,-929.08524119,0.00016856,2]
[420826836,1776597047127,-1639.21342548,0.000196,4]
[420826909,1776598231703,-469.74779629,0.00012238,2]
[420826910,1776598231812,-346.69220371,0.00012238,2]
[420826911,1776598231822,-222.0,0.00012362,2]
[420826912,1776598231831,-400.18522215,0.000125,2]
[420826913,1776598231841,-224.65077424,0.0001263,2]
[420826914,1776598231851,-355.68247802,0.00013699,2]
[420826915,1776598231862,-281.6786739,0.00013699,2]
[420826922,1776598239242,-362.63884808,0.00013699,2]
[420826923,1776598239252,-184.0,0.00017233,2]
[420826924,1776598239262,-396.42615192,0.00017233,2]
[420826925,1776598239364,-44.57384808,0.00017233,2]
[420826926,1776598239374,-1000.0,0.00017686,2]
[420826927,1776598239383,-243.1556718,0.00017968,2]
[420826928,1776598239392,-500.0,0.00018128,2]
[420826929,1776598239402,-206.46338693,0.00019175,2]
[420826930,1776598239411,-197.88321703,0.00019231,2]
[420826931,1776598239423,-1756.66150857,0.00019231,2]
[420826932,1776598239432,-800.0,0.0001931,2]
[420826933,1776598239442,-800.0,0.00019342,2]
[420826934,1776598239451,-800.0,0.00019369,2]
[420826935,1776598239460,-800.0,0.00019492,2]
[420826936,1776598239470,-221.62341965,0.00019503,2]
[420826937,1776598239480,-152.0,0.00019507,7]
[420826938,1776598239489,-152.0,0.00019513,30]
[420826939,1776598239498,-5000.0,0.000196,30]
[420826940,1776598239507,-325.2695583,0.00019622,2]
[420826941,1776598239517,-325.2695584,0.00019622,2]
[420826942,1776598239527,-553.7968446,0.00019653,2]
[420826943,1776598239536,-325.2893202,0.00019653,2]
[420826944,1776598239546,-31970.70398328,0.00019688,4]
[420826947,1776598240280,-29777.81899852,0.00019688,4]
[420826948,1776598240290,-2319.68775805,0.00019689,2]
[420826949,1776598240300,-4801.11783156,0.00019693,2]
[420826950,1776598240309,-303.03733801,0.000197,2]
[420826951,1776598240319,-500.0,0.00019773,2]
[420826952,1776598240328,-500.0,0.00019773,2]
[420826953,1776598240338,-500.0,0.00019773,2]
[420826954,1776598240347,-500.0,0.00019773,2]
[420826955,1776598240356,-500.0,0.00019773,2]
[420826956,1776598240366,-501.23748746,0.00019773,2]
[420826957,1776598240375,-500.0,0.00019773,2]
[420826958,1776598240384,-500.0,0.00019787,2]
[420826959,1776598240394,-500.0,0.00019787,2]
[420826960,1776598240403,-500.0,0.00019787,2]
[420826961,1776598240412,-500.0,0.00019787,2]
[420826962,1776598240421,-500.0,0.00019787,2]
[420826963,1776598240431,-500.0,0.00019787,2]
[420826964,1776598240440,-500.0,0.00019787,2]
[420826965,1776598240450,-500.0,0.00019787,2]
[420826966,1776598240459,-500.0,0.00019787,2]
[420826967,1776598240468,-110.74441398,0.00019787,2]
[420827073,1776598243185,-550.56903182,0.00019175,2]
[420827074,1776598243195,-389.25558602,0.00019787,2]
[420827075,1776598243204,-500.0,0.00019787,2]
[420827076,1776598243214,-500.0,0.00019787,2]
[420827077,1776598243223,-500.0,0.00019787,2]
[420827078,1776598243234,-500.0,0.00019787,2]
[420827079,1776598243243,-621.53383287,0.00019787,2]
[420827080,1776598243253,-500.0,0.00019787,2]
[420827081,1776598243262,-500.0,0.00019787,2]
[420827082,1776598243271,-500.0,0.00019787,2]
[420827083,1776598243281,-500.0,0.00019787,2]
[420827084,1776598243291,-500.0,0.00019787,2]
[420827085,1776598243301,-500.0,0.00019787,2]
[420827086,1776598243312,-500.0,0.00019787,2]
[420827087,1776598243321,-500.0,0.00019787,2]
[420827088,1776598243332,-500.0,0.00019787,2]
[420827089,1776598243342,-500.0,0.00019787,2]
[420827090,1776598243352,-500.0,0.00019787,2]
[420827091,1776598243361,-500.0,0.00019787,2]
[420827092,1776598243370,-500.0,0.00019787,2]
[420827093,1776598243380,-500.0,0.00019787,2]
[420827094,1776598243389,-500.0,0.00019787,2]
[420827095,1776598243399,-500.0,0.00019787,2]
[420827096,1776598243410,-221.18375343,0.00019787,2]
[420827097,1776598243421,-500.0,0.00019787,2]
[420827098,1776598243432,-500.0,0.00019787,2]
[420827099,1776598243442,-500.0,0.00019787,2]
[420827100,1776598243451,-500.0,0.00019787,2]
[420827101,1776598243643,-500.0,0.00019787,2]
[420827102,1776598243653,-500.0,0.00019787,2]
[420827103,1776598243662,-500.0,0.00019787,2]
[420827104,1776598243671,-500.0,0.00019787,2]
[420827105,1776598243680,-500.0,0.00019787,2]
[420827106,1776598243689,-500.0,0.00019787,2]
[420827107,1776598243698,-500.0,0.00019787,2]
[420827108,1776598243708,-500.0,0.00019787,2]
[420827109,1776598243717,-201.20293819,0.00019787,2]
[420827110,1776598243726,-500.0,0.00019787,2]
[420827111,1776598243735,-500.0,0.00019787,2]
[420827112,1776598243744,-500.0,0.00019787,2]
[420827113,1776598243754,-500.0,0.00019787,2]
[420827114,1776598243763,-28935.67451007,0.00019788,2]
[420827133,1776598246152,-306.91,0.00016438,2]
[420827134,1776598246162,-367.04602122,0.00019787,2]
[420827135,1776598246172,-35896.36667391,0.00019788,2]
[420827136,1776598246187,-355.3,0.00019788,2]
[420827137,1776598246200,-34116.70212801,0.00019788,2]
[420827208,1776599432017,-191.5907496,8.753e-05,2]
[420827210,1776599432026,-195.52117662,9.906e-05,2]
[420827211,1776599432035,-269.56640304,0.00013365,14]
[420827212,1776599432044,-463.03891635,0.00013699,2]
[420827213,1776599432122,-536.96108365,0.00013699,2]
[420827214,1776599432132,-480.0,0.0001744,2]
[420827215,1776599432141,-2209.0,0.00017441,2]
[420827216,1776599432151,-277.692,0.00017441,2]
[420827217,1776599432160,-1751.7,0.000179,2]
[420827218,1776599432170,-716.92706555,0.00018831,2]
[420827219,1776599432179,-151.0,0.00018831,2]
[420827220,1776599432189,-151.0,0.00018831,2]
[420827221,1776599432198,-200.81294128,0.000189,2]
[420827223,1776599432209,-1550.88705872,0.000189,2]
[420827224,1776599432219,-700.43253282,0.00019488,2]
[420827234,1776599438397,-303.2,0.00016438,2]
[420827235,1776599438407,-638.61791522,0.00019488,2]
[420827236,1776599438421,-36880.41076958,0.00019488,2]
[420827237,1776599438449,-119583.00767286,0.00019488,2]
[420827240,1776599440439,-1019.05201729,0.00019488,2]
[420827241,1776599440451,-6304.68175008,0.00019488,2]
[420827242,1776599440494,-657.01944389,0.00019488,2]
[420827243,1776599440505,-37759.20000001,0.00019488,2]
[420827426,1776599446428,-46204.40261382,0.00019488,2]
[420827427,1776599446484,-276.5150003,0.00019488,2]
[420827429,1776599446496,-74259.82848203,0.00019488,2]
[420827430,1776599446543,-31246.11401575,0.00019488,2]
[420827433,1776599446969,-296.51583065,0.000193,2]
[420827434,1776599446978,-579.10958037,0.000193,2]
[420827435,1776599446987,-304.05405651,0.00019488,2]
[420827436,1776599446998,-3256.23330091,0.00019488,2]
[420827437,1776599447010,-468.942,0.00019488,2]
[420827438,1776599447026,-5352.49999837,0.00019488,2]
[420827504,1776599804714,214.26479099,0.00024764,120]
[420827505,1776599805012,261.52478428,0.00024764,120]
[420827595,1776600016582,300.0,0.00011147,22]
[420827601,1776600046283,581.54935579,0.00024764,120]
[420827603,1776600052882,160.89287016,0.00024764,120]
[420827604,1776600056683,943.13007102,0.00024764,120]
[420827606,1776600063000,-225.0,7.17e-05,2]
[420827607,1776600063033,-196.0,7.17e-05,2]
[420827608,1776600063063,-255.0,7.17e-05,2]
[420827609,1776600063092,-153.0,7.17e-05,2]
[420827610,1776600063114,-225.0,7.227e-05,2]
[420827611,1776600063130,-196.0,7.227e-05,2]
[420827612,1776600063141,-255.0,7.227e-05,2]
[420827613,1776600063151,-153.0,7.227e-05,2]
[420827614,1776600063163,-34.81487939,7.227e-05,2]
[420827682,1776600632389,-20.23563994,7.227e-05,2]
[420827683,1776600632399,-150.0,7.252e-05,2]
[420827684,1776600632409,-159.11,7.3e-05,2]
[420827685,1776600632419,-1723.88587261,7.327e-05,2]
[420827686,1776600632428,-156.72776106,7.327e-05,2]
[420827687,1776600632438,-1835.63616675,7.427e-05,2]
[420827688,1776600632449,-728.08505914,7.427e-05,2]
[420827689,1776600632459,-235.09164158,7.454e-05,2]
[420827690,1776600632468,-2947.23424698,7.455e-05,2]
[420827692,1776600632477,-300.0,8.168e-05,2]
[420827693,1776600632486,-225.0,8.17e-05,2]
[420827694,1776600632495,-196.0,8.17e-05,2]
[420827695,1776600632504,-255.0,8.17e-05,2]
[420827696,1776600632513,-113.5940709,8.17e-05,2]
[420827697,1776600632528,-39.4059291,8.17e-05,2]
[420827698,1776600632537,-3488.24424075,9.091e-05,2]
[420827699,1776600632546,-225.0,9.17e-05,2]
[420827700,1776600632555,-325.29241624,9.17e-05,2]
[420827701,1776600632565,-196.0,9.17e-05,2]
[420827702,1776600632575,-255.0,9.17e-05,2]
[420827703,1776600632584,-153.0,9.17e-05,2]
[420827704,1776600632592,-151.95381695,9.252e-05,2]
[420827720,1776600638428,-130.34158562,9.252e-05,2]
[420827721,1776600638442,-251.93589074,9.549e-05,2]
[420827722,1776600638454,-4029.25423468,9.909e-05,2]
[420827723,1776600638464,-200.0,0.0001,2]
[420827724,1776600638474,-225.0,0.0001017,2]
[420827725,1776600638483,-196.0,0.0001017,2]
[420827726,1776600638493,-255.0,0.0001017,2]
[420827727,1776600638502,-153.0,0.0001017,2]
[420827728,1776600638512,-4243.39193244,0.00010727,2]
[420827729,1776600638522,-225.0,0.0001117,2]
[420827730,1776600638531,-196.0,0.0001117,2]
[420827731,1776600638540,-255.0,0.0001117,2]
[420827732,1776600638550,-154.24914969,0.0001117,2]
[420827733,1776600638559,-4570.26422861,0.00011545,2]
[420827734,1776600638569,-300.08405527,0.00012,2]
[420827735,1776600638578,-241.27396089,0.0001217,2]
[420827736,1776600638588,-203.0577726,0.0001217,2]
[420827737,1776600638597,-257.46004033,0.0001217,2]
[420827738,1776600638607,-5083.22728572,0.00012364,2]
[420827739,1776600638617,-1000.0,0.00013699,2]
[420827740,1776600638626,-5652.70787528,0.00014,2]
[420827741,1776600638635,-6193.7595253,0.00015636,2]
[420827742,1776600638645,-150.01,0.00016137,2]
[420827743,1776600638654,-528.37916429,0.00016313,2]
[420827744,1776600638664,-250.34526384,0.00016313,2]
[420827745,1776600638673,-500.0,0.00016313,2]
[420827746,1776600638683,-500.0,0.00016313,2]
[420827747,1776600638692,-500.0,0.00016313,2]
[420827748,1776600638702,-500.0,0.00016313,2]
[420827749,1776600638712,-500.0,0.00016313,2]
[420827750,1776600638721,-500.0,0.00016313,2]
[420827751,1776600638730,-500.0,0.00016313,2]
[420827752,1776600638739,-208.37558977,0.00016313,2]
[420827753,1776600638748,-500.0,0.00016313,2]
[420827754,1776600638757,-500.0,0.00016313,2]
[420827755,1776600638768,-303.89532506,0.00016313,2]
[420827756,1776600638777,-209.67873055,0.00016313,2]
[420827757,1776600638787,-500.0,0.00016313,2]
[420827758,1776600638796,-500.0,0.00016313,2]
[420827759,1776600638806,-500.0,0.00016313,2]